fUSD/lending_fUSD_20240329
["ID","MTS","AMOUNT","RATE_DAILY","PERIOD"]
[320986180,1711730211126,-1000.0,0.00051643,4]
[320986181,1711730211142,-1768.9,0.00051643,4]
[320986182,1711730211153,-223.65,0.00051643,4]
[320986183,1711730211173,-9039.47106703,0.00051643,4]
[320986184,1711730211184,-6580.25888762,0.00051643,4]
[320986185,1711730211200,-1277.65210138,0.00051643,4]
[320986186,1711730211211,-26081.41541335,0.00051643,4]
[320986187,1711730211229,-300.0,0.00051643,4]
[320986188,1711730211240,-21150.05954235,0.00051643,4]
[320986189,1711730211251,-444.83583071,0.00051643,4]
[320986190,1711730211265,-163.27755652,0.00051643,4]
[320986191,1711730211285,-350.0,0.00051643,4]
[320986192,1711730211296,-1000.0,0.00051643,4]
[320986193,1711730211309,-444.83583067,0.00051643,4]
[320986194,1711730211321,-21150.05954235,0.00051643,4]
[320986195,1711730211338,-223.65,0.00051643,4]
[320986196,1711730211355,-378.55,0.00051643,4]
[320986197,1711730211371,-400.0,0.00051643,4]
[320986198,1711730211385,-378.55,0.00051643,4]
[320986199,1711730211397,-378.55,0.00051643,4]
[320986200,1711730211418,-378.55,0.00051643,4]
[320986201,1711730211430,-378.55,0.00051643,4]
[320986202,1711730211449,-378.55,0.00051643,4]
[320986203,1711730211531,-378.55,0.00051643,4]
[320986204,1711730211584,-378.55,0.00051643,4]
[320986205,1711730211596,-378.55,0.00051643,4]
[320986206,1711730211608,-378.55,0.00051643,4]
[320986207,1711730211623,-477.53316459,0.00051643,4]
[320986208,1711730211690,-378.55,0.00051643,4]
[320986209,1711730211743,-444.83583067,0.00051643,4]
[320986210,1711730211761,-378.55,0.00051643,4]
[320986211,1711730211772,-378.55,0.00051643,4]
[320986212,1711730211783,-378.55,0.00051643,4]
[320986213,1711730211794,-163.27755652,0.00051643,4]
[320986214,1711730211809,-378.55,0.00051643,4]
[320986215,1711730211820,-851.6036423,0.00051643,4]
[320986216,1711730211830,-378.55,0.00051643,4]
[320986217,1711730211841,-378.55,0.00051643,4]
[320986218,1711730211855,-378.55,0.00051643,4]
[320986219,1711730211866,-378.55,0.00051643,4]
[320986220,1711730211881,-450.0,0.00051643,4]
[320986221,1711730211891,-378.55,0.00051643,4]
[320986222,1711730211902,-21150.05954235,0.00051643,4]
[320986223,1711730211917,-1000.0,0.00051643,4]
[320986224,1711730211932,-1170.0,0.00051643,4]
[320986225,1711730211943,-280.1949757,0.00051643,4]
[320986226,1711730211954,-280.1949757,0.00051643,4]
[320986227,1711730211967,-280.1949757,0.00051643,4]
[320986228,1711730211978,-280.1949757,0.00051643,4]
[320986229,1711730212001,-280.1949757,0.00051643,4]
[320986230,1711730212076,-280.1949757,0.00051643,4]
[320986231,1711730213681,-280.1949757,0.00051643,4]
[320986232,1711730213694,-280.1949757,0.00051643,4]
[320986233,1711730213706,-280.1949757,0.00051643,4]
[320986234,1711730213720,-280.1949757,0.00051643,4]
[320986235,1711730213733,-280.1949757,0.00051643,4]
[320986236,1711730213746,-280.1949757,0.00051643,4]
[320986237,1711730213760,-280.1949757,0.00051643,4]
[320986238,1711730213778,-280.1949757,0.00051643,4]
[320986239,1711730213798,-280.1949757,0.00051643,4]
[320986240,1711730213811,-280.1949757,0.00051643,4]
[320986241,1711730213824,-280.1949757,0.00051643,4]
[320986242,1711730213836,-280.1949757,0.00051643,4]
[320986243,1711730213849,-280.1949757,0.00051643,4]
[320986244,1711730213861,-280.1949757,0.00051643,4]
[320986245,1711730213873,-280.1949757,0.00051643,4]
[320986246,1711730213889,-280.1949757,0.00051643,4]
[320986247,1711730213901,-280.1949757,0.00051643,4]
[320986248,1711730213912,-280.1949757,0.00051643,4]
[320986249,1711730213937,-280.1949757,0.00051643,4]
[320986250,1711730213949,-280.1949757,0.00051643,4]
[320986251,1711730213965,-280.1949757,0.00051643,4]
[320986252,1711730213981,-280.1949757,0.00051643,4]
[320986253,1711730213992,-280.1949757,0.00051643,4]
[320986254,1711730214004,-280.1949757,0.00051643,4]
[320986255,1711730214016,-5000.0,0.00051643,4]
[320986256,1711730214027,-223.65,0.00051643,4]
[320986257,1711730214040,-3346.66621381,0.00051643,4]
[320986258,1711730214051,-300.0,0.00051643,4]
[320986259,1711730214062,-300.0,0.00051643,4]
[320986260,1711730214096,-300.0,0.00051643,4]
[320986261,1711730214164,-300.0,0.00051643,4]
[320986262,1711730214177,-300.0,0.00051643,4]
[320986263,1711730214192,-300.0,0.00051643,4]
[320986264,1711730214204,-300.0,0.00051643,4]
[320986265,1711730214216,-300.0,0.00051643,4]
[320986266,1711730214232,-300.0,0.00051643,4]
[320986267,1711730214244,-300.0,0.00051643,4]
[320986268,1711730214256,-300.0,0.00051643,4]
[320986269,1711730214271,-189.55645614,0.00051643,4]
[320986270,1711730214286,-444.83583067,0.00051643,4]
[320986271,1711730214298,-200.0,0.00051643,4]
[320986272,1711730214310,-500.0,0.00051643,4]
[320986273,1711730214322,-21150.05954235,0.00051643,4]
[320986274,1711730214334,-333.35019094,0.00051643,4]
[320986275,1711730214354,-444.83583067,0.00051643,4]
[320986276,1711730214367,-163.27755652,0.00051643,4]
[320986277,1711730214380,-207.73201418,0.00051643,4]
[320986278,1711730214393,-195.30838005,0.00051643,4]
[320986279,1711730214413,-5000.0,0.00051643,4]
[320986280,1711730214425,-164.51877774,0.00051643,4]
[320986281,1711730214442,-557.54840792,0.00051643,4]
[320986282,1711730214455,-166.40609062,0.00051643,4]
[320986283,1711730214471,-1313.76015949,0.00051643,4]
[320986284,1711730214482,-998.37778114,0.00051643,4]
[320986285,1711730214494,-155.0,0.00051643,4]
[320986286,1711730214506,-3124.11419268,0.00051643,4]
[320986287,1711730214518,-438.28883147,0.00051643,4]
[320986288,1711730214538,-785.90967558,0.00051643,4]
[320986289,1711730214550,-12758.04759302,0.00051643,4]
[320986290,1711730214561,-306240.61360155,0.00051643,4]
[320986291,1711730214570,-10413.46640118,0.00051643,5]
[320986292,1711730214580,-1120.77280022,0.00051651,120]
[320986293,1711730214589,-151.0,0.00051671,120]
[320986294,1711730214599,-153.88,0.000517,7]
[320986295,1711730214608,-1472.3736345,0.00051704,120]
[320986296,1711730214618,-1026.46531391,0.00051745,2]
[320986297,1711730214627,-161.2166251,0.00051754,60]
[320986298,1711730214636,-1318.14,0.0005178,72]
[320986299,1711730214646,-151.0,0.000518,120]
[320986300,1711730214656,-151.0,0.000518,120]
[320986301,1711730214665,-151.0,0.000518,120]
[320986302,1711730214675,-151.0,0.000518,120]
[320986303,1711730214684,-151.172693,0.000518,120]
[320986304,1711730214694,-172.716002,0.000518,30]
[320986305,1711730214703,-172.716002,0.000518,30]
[320986306,1711730214713,-151.0,0.000518,120]
[320986307,1711730214723,-153.923474,0.000518,120]
[320986308,1711730214733,-267.193341,0.000518,120]
[320986309,1711730214742,-363.577984,0.000518,120]
[320986310,1711730214752,-363.577984,0.000518,120]
[320986311,1711730214762,-151.0,0.000518,120]
[320986312,1711730214772,-151.0,0.000518,120]
[320986313,1711730214782,-151.0,0.000518,120]
[320986314,1711730214792,-151.0,0.000518,120]
[320986315,1711730214802,-643.619869,0.000518,120]
[320986316,1711730214812,-643.619869,0.000518,120]
[320986317,1711730214821,-151.0,0.000518,120]
[320986318,1711730214832,-151.0,0.000518,120]
[320986319,1711730214841,-151.0,0.000518,120]
[320986320,1711730214852,-167.123996,0.000518,120]
[320986321,1711730214862,-151.0,0.000518,120]
[320986322,1711730214872,-151.0,0.000518,120]
[320986323,1711730214882,-151.0,0.000518,120]
[320986324,1711730214892,-151.0,0.000518,120]
[320986325,1711730214901,-151.0,0.000518,120]
[320986326,1711730214911,-151.0,0.000518,120]
[320986327,1711730214920,-151.0,0.000518,120]
[320986328,1711730214931,-151.0,0.000518,120]
[320986329,1711730214940,-151.0,0.000518,120]
[320986330,1711730214950,-151.0,0.000518,120]
[320986331,1711730214959,-151.0,0.000518,120]
[320986332,1711730214969,-669.35686,0.000518,58]
[320986333,1711730214979,-874.4823335,0.00051809,2]
[320986334,1711730214989,-6058.2090243,0.00051809,2]
[320986335,1711730214999,-558.8555114,0.00051809,2]
[320986336,1711730215009,-1612.5815229,0.00051809,2]
[320986337,1711730215019,-3683.8573818,0.00051809,2]
[320986338,1711730215029,-107415.1547755,0.00051809,2]
[320986339,1711730215039,-13401.6789307,0.00051809,2]
[320986340,1711730215049,-880.28857169,0.00051809,2]
[320986341,1711730215059,-151.032815,0.00051845,107]
[320986342,1711730215068,-278.96320182,0.000519,120]
[320986343,1711730215078,-900.0,0.000519,18]
[320986344,1711730215088,-333.35019094,0.000519,2]
[320986345,1711730215098,-165.51225205,0.00051908,10]
[320986346,1711730215108,-250.46578713,0.00051916,10]
[320986347,1711730215118,-150.0,0.00051929,10]
[320986348,1711730215127,-1408.51871603,0.00051932,10]
[320986349,1711730215137,-158.62188234,0.00051944,10]
[320986350,1711730215148,-2734.79,0.00051967,30]
[320986351,1711730215158,-1571.8104668,0.00052,31]
[320986352,1711730215168,-2437.42170417,0.00052,120]
[320986353,1711730215178,-499.999999,0.00052,120]
[320986354,1711730215188,-10079.99109457,0.00052,90]
[320986355,1711730215197,-1695.49516524,0.00052,7]
[320986356,1711730215207,-194037.86653567,0.00052,120]
[320986357,1711730215222,-310.86496098,0.00052,120]
[320986358,1711730215234,-327.85615466,0.00052,120]
[320986359,1711730215251,-550.0,0.00052,120]
[320986360,1711730215273,-1180.5016,0.00040693,2]
[320986361,1711730215295,-1000.0,0.00040693,2]
[320986362,1711730215307,-223.65,0.00040693,2]
[320986363,1711730215320,-333.35019094,0.00040693,2]
[320986364,1711730215333,-444.83583067,0.00040693,2]
[320986365,1711730215348,-155.0,0.00040693,2]
[320986366,1711730215360,-3200.0,0.00040693,2]
[320986367,1711730215374,-42.92126601,0.00040693,2]
[320986368,1711730215383,-21107.13827634,0.00052,120]
[320986369,1711730215400,-159.04044982,0.00052,120]
[320986370,1711730215412,-157.73331619,0.00052,120]
[320986371,1711730215424,-274.05,0.00052,120]
[320986372,1711730215437,-152.35883009,0.00052,120]
[320986373,1711730215453,-155.74797489,0.00052,120]
[320986374,1711730215466,-153.04508506,0.00052,120]
[320986375,1711730215486,-333.35019094,0.00052,120]
[320986376,1711730215502,-100000.0,0.00032048,2]
[320986377,1711730215513,-68113.16815777,0.00052,120]
[320986378,1711730215525,-162.20452587,0.00052,120]
[320986379,1711730215537,-153.27923999,0.00052,120]
[320986380,1711730215591,-156.01564808,0.00052,120]
[320986381,1711730215616,-444.83583067,0.00052,120]
[320986382,1711730215644,-152.35883009,0.00052,120]
[320986383,1711730215658,-955.96438453,0.00052,120]
[320986384,1711730215670,-162.20452587,0.00052,120]
[320986385,1711730215683,-3303.34437691,0.00052,120]
[320986386,1711730215696,-155.93084442,0.00052,120]
[320986387,1711730215711,-1318.14,0.00052,120]
[320986388,1711730215730,-151.0,0.00052,120]
[320986389,1711730215743,-151.0,0.00052,120]
[320986390,1711730215755,-151.0,0.00052,120]
[320986391,1711730215767,-151.0,0.00052,120]
[320986392,1711730215779,-153.04508506,0.00052,120]
[320986393,1711730215792,-162.03426665,0.00052,120]
[320986394,1711730215826,-162.20452587,0.00052,120]
[320986395,1711730215901,-153.27923999,0.00052,120]
[320986396,1711730215913,-2052.62,0.00052,120]
[320986397,1711730215926,-499.99,0.00052,120]
[320986398,1711730215940,-150.5,0.00052,120]
[320986399,1711730215952,-150.5,0.00052,120]
[320986400,1711730215965,-150.5,0.00052,120]
[320986401,1711730215980,-151.0,0.00052,120]
[320986402,1711730215992,-151.0,0.00052,120]
[320986403,1711730216003,-151.0,0.00052,120]
[320986404,1711730216018,-151.0,0.00052,120]
[320986405,1711730216031,-5175.86352885,0.00052,120]
[320986406,1711730216053,-8169.4872709,0.00052,120]
[320986407,1711730216066,-5000.0,0.00052,120]
[320986408,1711730216078,-837.45168303,0.00052,120]
[320986409,1711730216090,-151.0,0.00052,120]
[320986410,1711730216107,-5852.0,0.00052,120]
[320986411,1711730216119,-333.35019094,0.00052,120]
[320986412,1711730216131,-416.02,0.00052,120]
[320986413,1711730216147,-150.0,0.00052,120]
[320986414,1711730216158,-161.51,0.00052,120]
[320986415,1711730216226,-150.0,0.00052,120]
[320986416,1711730216282,-1318.14,0.00052,120]
[320986417,1711730216300,-159.04044982,0.00052,120]
[320986418,1711730216317,-162.20452587,0.00052,120]
[320986419,1711730216329,-1472.3736345,0.00052,120]
[320986420,1711730216341,-153.04508506,0.00052,120]
[320986421,1711730216353,-21150.05954235,0.00052,120]
[320986422,1711730216365,-152.35883009,0.00052,120]
[320986423,1711730216377,-3000.0,0.00052,120]
[320986424,1711730216390,-1115.24814514,0.00052,120]
[320986425,1711730216419,-1472.3736345,0.00052,120]
[320986426,1711730216430,-3000.0,0.00052,120]
[320986427,1711730216443,-1318.14,0.00052,120]
[320986428,1711730216455,-3000.0,0.00052,120]
[320986429,1711730216471,-1472.3736345,0.00052,120]
[320986430,1711730216486,-3000.0,0.00052,120]
[320986431,1711730216498,-653.29825033,0.00052,120]
[320986432,1711730216517,-444.83583067,0.00052,120]
[320986433,1711730216530,-153.04508506,0.00052,120]
[320986434,1711730216786,-153.27923999,0.00052,120]
[320986435,1711730216798,-3000.0,0.00052,120]
[320986436,1711730307051,-898.54083325,0.00031861,4]
[320986437,1711730307074,-1882.15,0.00031862,2]
[320986438,1711730307096,-2342.08393912,0.00032046,4]
[320986439,1711730307118,-3045.64301195,0.00032046,7]
[320986440,1711730307140,-155.0,0.00032046,4]
[320986441,1711730307163,-267.92805569,0.00032047,4]
[320986442,1711730307184,-281.17758265,0.00032047,4]
[320986443,1711730307207,-245000.0,0.00032048,2]
[320986444,1711730309092,1000.0,0.00032048,2]
[320986450,1711730335344,39827.2204,0.00032048,2]
[320986451,1711730336165,500.0,0.00032048,2]
[320986453,1711730384936,57292.5688,0.00032048,2]
[320986454,1711730396412,432.3772,0.00031948,2]
[320986490,1711730458479,181551.8886,0.00031948,2]
[320986532,1711730714738,11069.26819386,0.00031948,4]
[320986544,1711730854095,-898.54083325,0.00037517,4]
[320986545,1711730854117,-425.866066,0.00037518,2]
[320986546,1711730854139,-25978.31643737,0.00037708,4]
[320986547,1711730854160,-513.78160398,0.0003771,2]
[320986548,1711730854182,-392.78099225,0.00037808,4]
[320986549,1711730854203,-1589.68582164,0.00037809,4]
[320986550,1711730854230,-180.87305966,0.00037809,4]
[320986551,1711730854253,-405.94512165,0.0003781,4]
[320986552,1711730854274,-2197.04071289,0.00037903,4]
[320986553,1711730854294,-1364.15268736,0.000391,4]
[320986554,1711730854314,-599.84381283,0.000391,4]
[320986555,1711730854335,-513.78160399,0.000398,2]
[320986556,1711730854356,-6848.917,0.000398,2]
[320986557,1711730854377,-432.3772,0.000398,2]
[320986558,1711730854398,-364.8128,0.000398,2]
[320986559,1711730854420,-1358.14,0.000398,2]
[320986560,1711730854441,-313.13,0.000398,2]
[320986561,1711730854465,-499.99,0.000398,2]
[320986562,1711730854487,-5543.94372667,0.0003989,2]
[320986569,1711730948120,-573.8194,0.00037607,4]
[320986570,1711730948149,-324.72143325,0.00037607,4]
[320986571,1711730948169,-3006.9218,0.00037608,2]
[320986572,1711730948195,-347.63976675,0.000398,2]
[320986573,1711730959123,-3600.51556584,0.000398,2]
[320986574,1711730959144,-11431.73457485,0.000398,2]
[320986575,1711730963128,-12959.79312515,0.000398,2]
[320986576,1711730963150,-6345.01786275,0.000398,2]
[320986577,1711730963171,-28646.2844,0.000398,2]
[320986578,1711730963191,-672.42,0.0003989,3]
[320986579,1711730963213,-2380.2506121,0.0003989,2]
[320986581,1711730964241,-6314.60483227,0.0003989,2]
[320986582,1711730964266,-1040.17483557,0.00039898,4]
[320986583,1711730964286,-3047.35001348,0.00039899,30]
[320986584,1711730964305,-7190.00322083,0.00039899,5]
[320986585,1711730964326,-100000.0,0.000399,2]
[320986586,1711730964346,-1059.0909,0.000399,2]
[320986587,1711730964366,-500.0,0.000399,2]
[320986588,1711730964388,-5653.2157,0.000399,10]
[320986589,1711730964408,-39827.2204,0.000399,2]
[320986590,1711730964430,-1000.0,0.000399,2]
[320986591,1711730964453,-15081.63009785,0.0004,2]
[320986592,1711730965168,-25999.594,0.0004,2]
[320986642,1711731033015,-413.59793806,0.0003999,2]
[320986643,1711731033025,-898.54083325,0.00039999,4]
[320986644,1711731033034,-224.06822869,0.0004,2]
[320986645,1711731033046,-677.88581329,0.0004,2]
[320986646,1711731033059,-4512.1474124,0.0004,2]
[320986647,1711731033091,-4789.97235925,0.0004,2]
[320986648,1711731033159,-1416.76496623,0.0004,2]
[320986649,1711731033170,-25446.5247709,0.0004,2]
[320986650,1711731033182,-3230.63302066,0.0004,2]
[320986651,1711731033193,-1528.03631163,0.0004,2]
[320986652,1711731033231,-7798.69314125,0.0004,2]
[320986653,1711731033242,-1796.39140899,0.0004,2]
[320986654,1711731033294,-3439.15,0.0004,2]
[320986655,1711731033359,-81550.23075094,0.0004,2]
[320986656,1711731033373,-1000.0,0.0004,120]
[320986657,1711731033382,-150.99,0.0004,10]
[320986658,1711731033392,-250.0,0.00040562,2]
[320986659,1711731033402,-23900.0,0.00040724,2]
[320986660,1711731033412,-1936.91,0.00040726,2]
[320986661,1711731033422,-1000.0,0.00041,120]
[320986663,1711731033433,-508.78,0.00041281,2]
[320986665,1711731033443,-935.91284452,0.00041911,10]
[320986667,1711731033453,-1000.0,0.00042,120]
[320986669,1711731033462,-1000.0,0.00042,30]
[320986671,1711731033472,-413.59793806,0.00042001,2]
[320986673,1711731033483,-3948.15533257,0.00042011,2]
[320986675,1711731033497,-6345.0178627,0.00042011,2]
[320986677,1711731033507,-1000.0,0.000425,120]
[320986679,1711731033516,-250.0,0.00042517,2]
[320986682,1711731033527,-1000.0,0.00043,120]
[320986684,1711731033536,-1882.15,0.00043094,2]
[320986686,1711731033546,-454.05,0.00043431,2]
[320986688,1711731033555,-6580.90320519,0.00043573,4]
[320986689,1711731033566,-935.91284447,0.00043776,11]
[320986691,1711731033576,-1000.0,0.00044,120]
[320986692,1711731033586,-508.78,0.00044021,2]
[320986693,1711731033595,-1000.0,0.00044162,2]
[320986694,1711731033605,-3948.15533257,0.00044222,2]
[320986695,1711731033614,-6345.0178627,0.00044222,2]
[320986696,1711731033623,-1000.0,0.00045,120]
[320986697,1711731033632,-160.57,0.00045289,15]
[320986698,1711731033642,-250.0,0.00045329,112]
[320986699,1711731033655,-302.55,0.00045366,3]
[320986700,1711731033666,-150.0,0.00045409,2]
[320986701,1711731033676,-935.91284447,0.00045642,12]
[320986702,1711731033686,-454.05,0.00045694,2]
[320986703,1711731033696,-1000.0,0.00046,120]
[320986704,1711731033706,-3948.15533257,0.00046433,2]
[320986705,1711731033716,-6345.0178627,0.00046433,2]
[320986706,1711731033726,-1280.6,0.00046456,2]
[320986707,1711731033736,-508.78,0.0004676,2]
[320986708,1711731033746,-1000.0,0.00047,120]
[320986709,1711731033755,-155.74528116,0.00047365,30]
[320986710,1711731033765,-1000.0,0.000475,120]
[320986711,1711731033775,-935.91284447,0.00047507,13]
[320986712,1711731033784,-152.30659038,0.00047576,30]
[320986713,1711731033795,-162.03426665,0.00047614,30]
[320986714,1711731033804,-454.05,0.00047958,2]
[320986715,1711731033814,-1000.0,0.00048,120]
[320986716,1711731033824,-600.0,0.00048,49]
[320986717,1711731033833,-192.15555556,0.00048,120]
[320986718,1711731033843,-153.14766611,0.00048137,30]
[320986719,1711731033853,-153.14766611,0.00048471,30]
[320986720,1711731033862,-155.74528116,0.00048559,30]
[320986721,1711731033872,-192.15555556,0.00048603,120]
[320986722,1711731033882,-3948.15533257,0.00048644,2]
[320986723,1711731033892,-6345.0178627,0.00048644,2]
[320986724,1711731033901,-162.03426665,0.00048659,30]
[320986725,1711731033911,-157.73331619,0.00048841,30]
[320986726,1711731033924,-1000.0,0.00049,120]
[320986727,1711731033934,-600.0,0.00049,50]
[320986728,1711731033944,-161.2166251,0.00049117,30]
[320986729,1711731033953,-192.15555556,0.00049205,120]
[320986730,1711731033963,-500.0,0.00049315,30]
[320986731,1711731033972,-1279.42,0.00049315,60]
[320986732,1711731033983,-153.27924,0.00049317,30]
[320986733,1711731033993,-935.91284447,0.00049372,14]
[320986734,1711731034002,-363.83,0.0004939,2]
[320986735,1711731034012,-500.0,0.0004939,2]
[320986736,1711731034022,-189.66,0.0004939,120]
[320986737,1711731034032,-160.57,0.00049398,120]
[320986738,1711731034042,-152.3588301,0.0004945,30]
[320986739,1711731034058,-153.14766611,0.00049553,30]
[320986740,1711731034068,-1000.0,0.00049682,120]
[320986741,1711731034077,-153.14766611,0.00049763,30]
[320986742,1711731034088,-413.59793806,0.00049775,7]
[320986743,1711731034098,-94924.45,0.00049785,2]
[320986744,1711731034108,-192.15555556,0.00049808,120]
[320986745,1711731034118,-208.65519808,0.0005,2]
[320986746,1711731034127,-5000.0,0.0005,30]
[320986747,1711731034137,-151.0,0.0005,120]
[320986748,1711731034147,-1000.0,0.0005,120]
[320986749,1711731034156,-600.0,0.0005,51]
[320986750,1711731034166,-916.57961668,0.0005,120]
[320986751,1711731034175,-1279.42,0.00050136,64]
[320986752,1711731034184,-454.05,0.00050222,2]
[320986753,1711731034194,-192.15555556,0.00050411,120]
[320986754,1711731034207,-155.74528116,0.00050499,60]
[320986755,1711731034216,-162.03426665,0.00050518,60]
[320986756,1711731034225,-156.65046782,0.00050557,60]
[320986757,1711731034236,-153.14766611,0.00050642,60]
[320986758,1711731034247,-150.0,0.00050753,30]
[320986759,1711731034260,-347.44,0.00050753,30]
[320986760,1711731034270,-150.0,0.00050753,30]
[320986761,1711731034279,-3948.15533257,0.00050856,2]
[320986762,1711731034289,-6345.0178627,0.00050856,2]
[320986763,1711731034298,-1279.42,0.00050958,68]
[320986764,1711731034308,-1000.0,0.00051,120]
[320986765,1711731034318,-600.0,0.00051,52]
[320986766,1711731034327,-161.2166251,0.00051,60]
[320986767,1711731034337,-192.15555556,0.00051014,120]
[320986768,1711731034346,-162.03426665,0.00051146,60]
[320986769,1711731034356,-161.2166251,0.00051204,60]
[320986770,1711731034366,-935.91284447,0.00051237,14]
[320986771,1711731034375,-1472.37363452,0.00051484,120]
[320986772,1711731034385,-153.66,0.000515,7]
[320986773,1711731034394,-153.66,0.000515,7]
[320986774,1711731034404,-153.66,0.000515,7]
[320986775,1711731034416,-153.66,0.000515,7]
[320986776,1711731034425,-153.66,0.000515,7]
[320986777,1711731034435,-153.66,0.000515,7]
[320986778,1711731034444,-153.66,0.000515,7]
[320986779,1711731034454,-153.66,0.000515,7]
[320986780,1711731034463,-153.66,0.000515,7]
[320986781,1711731034473,-153.66,0.000515,7]
[320986782,1711731034483,-5564.01,0.000515,7]
[320986783,1711731034493,-5564.01,0.000515,7]
[320986784,1711731034506,-5564.01,0.000515,7]
[320986785,1711731034516,-5564.01,0.000515,7]
[320986786,1711731034526,-5564.01,0.000515,7]
[320986787,1711731034535,-5564.01,0.000515,7]
[320986788,1711731034545,-5564.01,0.000515,7]
[320986789,1711731034555,-5564.01,0.000515,7]
[320986790,1711731034564,-5564.01,0.000515,7]
[320986791,1711731034573,-5564.01,0.000515,7]
[320986792,1711731034583,-4517.12226042,0.000515,7]
[320986799,1711731038686,-15031.53334926,0.000398,2]
[320986800,1711731038699,-694.67468814,0.000398,2]
[320986801,1711731038719,-3548.70582909,0.000398,2]
[320986802,1711731038731,-5248.17694044,0.000398,2]
[320986803,1711731038745,-9987.90608371,0.000398,2]
[320986804,1711731039409,-1135.5002272,0.000398,2]
[320986805,1711731039422,-1043.31035658,0.000398,2]
[320986806,1711731039433,-687.64278443,0.000398,2]
[320986807,1711731039445,-981.97731131,0.000398,2]
[320986808,1711731039467,-1467.79282984,0.000398,2]
[320986809,1711731039478,-1852.42,0.00048593,2]
[320986810,1711731039488,-1046.88773958,0.000515,7]
[320986811,1711731039499,-5564.01,0.000515,7]
[320986812,1711731039510,-5564.01,0.000515,7]
[320986813,1711731039520,-5564.01,0.000515,7]
[320986814,1711731039531,-5564.01,0.000515,7]
[320986815,1711731039542,-5564.01,0.000515,7]
[320986816,1711731039552,-5564.01,0.000515,7]
[320986817,1711731039562,-5564.01,0.000515,7]
[320986818,1711731039572,-5564.01,0.000515,7]
[320986819,1711731039585,-5564.01,0.000515,7]
[320986820,1711731039595,-192.15555556,0.00051616,120]
[320986821,1711731039605,-153.14766611,0.00051622,60]
[320986822,1711731039615,-151.0,0.00051671,120]
[320986823,1711731039625,-1472.37363452,0.00051712,120]
[320986824,1711731039635,-1279.42,0.0005178,72]
[320986825,1711731039645,-1891.05918519,0.000519,29]
[320986826,1711731039654,-196.05670908,0.000519,29]
[320986827,1711731039664,-312.54544078,0.000519,2]
[320986828,1711731039674,-153.14766611,0.00051946,60]
[320986829,1711731039685,-5000.0,0.00051954,3]
[320986830,1711731039694,-1936.91,0.00051959,120]
[320986831,1711731039704,-200.61373683,0.0005199,2]
[320986832,1711731039714,-263.74713136,0.00051996,30]
[320986833,1711731039723,-408.89873163,0.00051997,4]
[320986834,1711731039733,-164.51877775,0.00051997,2]
[320986835,1711731039744,-164.43987736,0.00051998,4]
[320986836,1711731039754,-1691.78350917,0.00051998,4]
[320986837,1711731039764,-4399.71378307,0.00051998,4]
[320986838,1711731039774,-304.45249816,0.00051999,4]
[320986839,1711731039784,-1181.17742901,0.00051999,4]
[320986840,1711731039793,-726.0,0.00052,7]
[320986841,1711731039803,-431709.5224267,0.00052,120]
[320986842,1711731039813,-426.37647791,0.00052,120]
[320986843,1711731039824,-566.95,0.00052,3]
[320986844,1711731039834,-2000.0,0.00052,120]
[320986845,1711731039844,-5781.24779688,0.00052,120]
[320986846,1711731039854,-14284.56691632,0.00052,120]
[320986847,1711731039864,-5000.0,0.00052,14]
[320986848,1711731039873,-150.0,0.00052,2]
[320986849,1711731039883,-150.0,0.00052,2]